[Event "44th Chess Olympiad Open 2022"]
[Site "Chennai"]
[Date "2022.08.01"]
[Round "4.74"]
[White "Terubea, Ronald"]
[Black "Pace, Colin"]
[Result "0-1"]
[WhiteElo "1742"]
[BlackElo "2159"]
[Annotator "NA RC"]
[PlyCount "54"]
[EventDate "2022.??.??"]
[TimeControl "60"]

1. e4 {[%emt 0:00:04]} c5 {[%emt 0:00:09]} 2. Bc4 {[%emt 0:00:07]} Nc6 {
[%emt 0:02:56]} 3. Nc3 {[%emt 0:00:17]} e6 {[%emt 0:01:10]} 4. a4 {[%emt 0:00:
00]} Nf6 {[%emt 0:01:30]} 5. Nf3 {[%emt 0:01:00]} d5 {[%emt 0:11:43]} 6. exd5 {
[%emt 0:00:28]} exd5 {[%emt 0:00:10]} 7. Qe2+ {[%emt 0:00:47]} Be7 {[%emt 0:00:
00]} 8. Bb5 {[%emt 0:00:43]} O-O {[%emt 0:04:30]} 9. Bxc6 {[%emt 0:00:07]} bxc6
{[%emt 0:00:05]} 10. O-O {[%emt 0:00:25]} Re8 {[%emt 0:04:13]} 11. h3 {[%emt 0:
00:00]} Bd6 {[%emt 0:09:12]} 12. Qd1 {[%emt 0:00:28]} h6 {[%emt 0:04:53]} 13.
d3 {[%emt 0:02:34]} Nh7 {[%emt 0:03:19]} 14. Bd2 {[%emt 0:02:27]} Qf6 {[%emt 0:
00:00]} 15. Rb1 {[%emt 0:01:50]} Rb8 {[%emt 0:02:39]} 16. b3 {[%emt 0:00:12]}
Ng5 {[%emt 0:03:19]} 17. Nxg5 {[%emt 0:01:57]} hxg5 {[%emt 0:00:08]} 18. Ne2 {
[%emt 0:00:45]} g4 {[%emt 0:02:34]} 19. g3 {[%emt 0:07:04]} gxh3 {[%emt 0:00:
00]} 20. Nf4 {[%emt 0:09:02]} Rb7 {[%emt 0:09:12]} 21. Re1 {[%emt 0:05:56]}
Rxe1+ {[%emt 0:07:50]} 22. Qxe1 {[%emt 0:00:16]} Re7 {[%emt 0:00:23]} 23. Qf1 {
[%emt 0:01:08]} Bxf4 {[%emt 0:02:52]} 24. Bxf4 {[%emt 0:03:41]} g5 {[%emt 0:00:
00]} 25. Bd2 {[%emt 0:03:38]} Qf3 {[%emt 0:00:25]} 26. Bxg5 {[%emt 0:00:37]}
Re2 {[%emt 0:00:09]} 27. Rc1 {[%emt 0:00:58]} h2+ {[%emt 0:00:13]} 0-1

[Event "44th Chess Olympiad Open 2022"]
[Site "Chennai"]
[Date "2022.08.01"]
[Round "4.74"]
[White "Jaiswal Prashant S"]
[Black "Darmanin, Jake"]
[Result "1/2-1/2"]
[WhiteElo "1683"]
[BlackElo "2101"]
[Annotator "NA RC"]
[PlyCount "163"]
[EventDate "2022.??.??"]
[TimeControl "60"]

1. d4 {[%emt 0:00:20]} Nf6 {[%emt 0:00:12]} 2. c4 {[%emt 0:00:08]} e6 {[%emt 0:
00:00]} 3. Nf3 {[%emt 0:00:29]} b6 {[%emt 0:00:27]} 4. Nc3 {[%emt 0:03:35]} Bb7
{[%emt 0:00:29]} 5. e3 {[%emt 0:00:15]} Ne4 {[%emt 0:02:30]} 6. Be2 {[%emt 0:
00:00]} f5 {[%emt 0:03:30]} 7. O-O {[%emt 0:01:38]} Be7 {[%emt 0:03:57]} 8.
Nxe4 {[%emt 0:02:53]} Bxe4 {[%emt 0:03:05]} 9. Ne5 {[%emt 0:02:54]} d6 {
[%emt 0:05:51]} 10. Nd3 {[%emt 0:06:33]} O-O {[%emt 0:07:07]} 11. Nf4 {[%emt 0:
00:00]} Rf6 {[%emt 0:08:22]} 12. d5 {[%emt 0:01:11]} e5 {[%emt 0:01:11]} 13.
Ne6 {[%emt 0:03:11]} Rxe6 {[%emt 0:00:18]} 14. dxe6 {[%emt 0:00:31]} Bb7 {
[%emt 0:04:20]} 15. Bf3 {[%emt 0:02:30]} c6 {[%emt 0:01:49]} 16. Be2 {[%emt 0:
00:00]} Qc8 {[%emt 0:03:11]} 17. b3 {[%emt 0:00:13]} Qxe6 {[%emt 0:00:29]} 18.
Bb2 {[%emt 0:00:11]} Nd7 {[%emt 0:01:00]} 19. Rc1 {[%emt 0:01:12]} Nf6 {
[%emt 0:03:14]} 20. Qc2 {[%emt 0:02:22]} Rf8 {[%emt 0:02:28]} 21. Rfd1 {
[%emt 0:04:10]} g5 {[%emt 0:05:14]} 22. Bd3 {[%emt 0:07:16]} Bc8 {[%emt 0:00:
00]} 23. b4 {[%emt 0:02:59]} h5 {[%emt 0:02:43]} 24. c5 {[%emt 0:05:26]} bxc5 {
[%emt 0:01:32]} 25. bxc5 {[%emt 0:03:00]} d5 {[%emt 0:00:19]} 26. Qa4 {[%emt 0:
00:00]} e4 {[%emt 0:03:46]} 27. Be2 {[%emt 0:00:48]} Qd7 {[%emt 0:02:16]} 28.
Qd4 {[%emt 0:03:19]} Kh7 {[%emt 0:01:24]} 29. Rb1 {[%emt 0:02:15]} h4 {[%emt 0:
00:00]} 30. Bc3 {[%emt 0:01:59]} Ne8 {[%emt 0:02:11]} 31. Rb3 {[%emt 0:00:51]}
f4 {[%emt 0:05:47]} 32. exf4 {[%emt 0:00:49]} Bf6 {[%emt 0:11:12]} 33. Qe3 {
[%emt 0:06:11]} Bxc3 {[%emt 0:00:16]} 34. Qxc3 {[%emt 0:00:59]} gxf4 {[%emt 0:
00:00]} 35. f3 {[%emt 0:11:41]} Qe7 {[%emt 0:02:20]} 36. fxe4 {[%emt 0:00:54]}
dxe4 {[%emt 0:01:32]} 37. Rd4 {[%emt 0:01:43]} Nf6 {[%emt 0:00:34]} 38. Qc2 {
[%emt 0:03:24]} Bf5 {[%emt 0:00:58]} 39. Bc4 {[%emt 0:01:34]} Qe5 {[%emt 0:00:
00]} 40. Rb7+ {[%emt 0:00:47]} Kh6 {[%emt 0:02:49]} 41. Qf2 {[%emt 0:33:49]}
Kg5 {[%emt 0:03:16]} 42. Rd1 {[%emt 0:00:00]} Ng4 {[%emt 0:05:58]} 43. Qd4 {
[%emt 0:00:00]} Qxd4+ {[%emt 0:11:16]} 44. Rxd4 {[%emt 0:00:00]} f3 {[%emt 0:
00:00]} 45. gxf3 {[%emt 0:00:00]} exf3 {[%emt 0:00:53]} 46. Rg7+ {[%emt 0:00:
00]} Kh5 {[%emt 0:00:48]} 47. Rdxg4 {[%emt 0:00:00]} Bxg4 {[%emt 0:03:06]} 48.
Bf7+ {[%emt 0:00:00]} Kh6 {[%emt 0:00:06]} 49. Rxg4 {[%emt 0:00:00]} Rxf7 {
[%emt 0:00:18]} 50. Rxh4+ {[%emt 0:00:00]} Kg5 {[%emt 0:00:08]} 51. Re4 {
[%emt 0:00:00]} Kf5 {[%emt 0:03:57]} 52. Re3 {[%emt 0:00:00]} Rg7+ {[%emt 0:00:
00]} 53. Kf2 {[%emt 0:00:00]} Rg2+ {[%emt 0:00:07]} 54. Kxf3 {[%emt 0:00:00]}
Rxh2 {[%emt 0:00:07]} 55. Re8 {[%emt 0:00:22]} Rxa2 {[%emt 0:00:56]} 56. Ke3 {
[%emt 0:00:46]} a5 {[%emt 0:03:52]} 57. Kd3 {[%emt 0:01:01]} a4 {[%emt 0:01:29]
} 58. Kc3 {[%emt 0:00:52]} a3 {[%emt 0:01:09]} 59. Kb3 {[%emt 0:02:59]} Ra1 {
[%emt 0:01:53]} 60. Kc2 {[%emt 0:02:20]} a2 {[%emt 0:00:35]} 61. Kb2 {[%emt 0:
00:00]} Rc1 {[%emt 0:00:07]} 62. Kxa2 {[%emt 0:00:27]} Rxc5 {[%emt 0:00:02]}
63. Kb3 {[%emt 0:00:21]} Rc1 {[%emt 0:00:36]} 64. Kb2 {[%emt 0:00:19]} Rd1 {
[%emt 0:00:45]} 65. Kc3 {[%emt 0:01:09]} Kf6 {[%emt 0:00:20]} 66. Kc4 {[%emt 0:
00:00]} Rc1+ {[%emt 0:00:08]} 67. Kb3 {[%emt 0:00:36]} Kf7 {[%emt 0:00:08]} 68.
Re2 {[%emt 0:00:21]} Rd1 {[%emt 0:00:41]} 69. Kc4 {[%emt 0:00:24]} Rc1+ {
[%emt 0:00:24]} 70. Kb3 {[%emt 0:00:14]} Kf6 {[%emt 0:01:25]} 71. Kb4 {[%emt 0:
00:00]} c5+ {[%emt 0:00:37]} 72. Kb3 {[%emt 0:00:09]} Kf5 {[%emt 0:00:25]} 73.
Kb2 {[%emt 0:00:24]} Rc4 {[%emt 0:00:08]} 74. Kb3 {[%emt 0:00:23]} Rc1 {
[%emt 0:00:51]} 75. Kb2 {[%emt 0:00:30]} Rd1 {[%emt 0:00:17]} 76. Kb3 {[%emt 0:
00:00]} Rd4 {[%emt 0:00:15]} 77. Kc3 {[%emt 0:00:36]} Rf4 {[%emt 0:00:39]} 78.
Re8 {[%emt 0:00:23]} Kg4 {[%emt 0:00:09]} 79. Re5 {[%emt 0:00:51]} Rf5 {
[%emt 0:00:22]} 80. Rxf5 {[%emt 0:00:16]} Kxf5 {[%emt 0:00:01]} 81. Kc4 {
[%emt 0:00:15]} Ke4 {[%emt 0:00:05]} 82. Kxc5 {[%emt 0:00:20]} 1/2-1/2

[Event "44th Chess Olympiad Open 2022"]
[Site "Chennai"]
[Date "2022.08.01"]
[Round "4.75"]
[White "Matola Ernest"]
[Black "Mutabazi Hugues"]
[Result "1-0"]
[WhiteElo "1964"]
[BlackElo "1666"]
[Annotator "NA RC"]
[PlyCount "109"]
[EventDate "2022.??.??"]
[TimeControl "60"]

1. Nf3 {[%emt 0:00:04]} Nf6 {[%emt 0:01:37]} 2. g3 d5 {[%emt 0:00:31]} 3. Bg2 {
[%emt 0:00:05]} c5 {[%emt 0:00:29]} 4. O-O {[%emt 0:00:34]} e6 5. d3 {[%emt 0:
00:00]} Nc6 6. Nbd2 {[%emt 0:00:45]} Be7 {[%emt 0:01:56]} 7. e4 {[%emt 0:00:34]
} dxe4 {[%emt 0:00:06]} 8. dxe4 {[%emt 0:00:20]} Qc7 {[%emt 0:00:25]} 9. c3 {
[%emt 0:01:05]} O-O {[%emt 0:00:25]} 10. Re1 {[%emt 0:00:29]} e5 {[%emt 0:00:
00]} 11. Nh4 {[%emt 0:01:19]} Rd8 {[%emt 0:06:31]} 12. Qc2 {[%emt 0:01:05]} Be6
{[%emt 0:01:02]} 13. Nf5 {[%emt 0:01:48]} Bf8 {[%emt 0:01:23]} 14. h4 {[%emt 0:
00:00]} g6 {[%emt 0:00:31]} 15. Ne3 {[%emt 0:00:28]} Rd7 {[%emt 0:01:30]} 16.
Nf3 {[%emt 0:03:19]} h6 {[%emt 0:00:28]} 17. Nh2 {[%emt 0:00:54]} Rad8 {
[%emt 0:03:20]} 18. Qe2 {[%emt 0:01:13]} h5 {[%emt 0:08:11]} 19. Rf1 {[%emt 0:
00:00]} Bh6 {[%emt 0:07:49]} 20. Nd5 {[%emt 0:01:00]} Nxd5 {[%emt 0:02:41]} 21.
Bxh6 {[%emt 0:07:50]} Nb6 {[%emt 0:00:25]} 22. Qf3 {[%emt 0:01:16]} f5 {
[%emt 0:01:11]} 23. Bg5 {[%emt 0:03:41]} Rf8 {[%emt 0:01:55]} 24. exf5 {
[%emt 0:01:47]} Rxf5 {[%emt 0:09:03]} 25. Qe3 {[%emt 0:02:06]} Ne7 {[%emt 0:00:
00]} 26. Bh3 {[%emt 0:00:48]} Nbd5 {[%emt 0:00:05]} 27. Qe2 {[%emt 0:00:44]}
Qc6 {[%emt 0:01:27]} 28. Rfd1 {[%emt 0:01:11]} Rxg5 {[%emt 0:01:34]} 29. Bxe6+
{[%emt 0:04:13]} Qxe6 {[%emt 0:00:37]} 30. hxg5 {[%emt 0:00:15]} Qf5 {[%emt 0:
00:00]} 31. c4 {[%emt 0:01:05]} Nb6 {[%emt 0:00:19]} 32. Rxd7 {[%emt 0:01:12]}
Nxd7 {[%emt 0:00:23]} 33. Rd1 {[%emt 0:00:47]} Nc6 {[%emt 0:00:13]} 34. Qf3 {
[%emt 0:00:59]} Qxf3 {[%emt 0:02:23]} 35. Nxf3 {[%emt 0:00:09]} Nd4 {[%emt 0:
00:00]} 36. Nxd4 {[%emt 0:00:32]} exd4 {[%emt 0:00:04]} 37. f4 {[%emt 0:00:39]}
Kf7 {[%emt 0:00:14]} 38. Re1 {[%emt 0:00:22]} Nf8 {[%emt 0:06:49]} 39. Kf2 {
[%emt 0:00:55]} Ne6 {[%emt 0:00:13]} 40. Kf3 {[%emt 0:01:20]} a6 {[%emt 0:00:
00]} 41. g4 {[%emt 0:00:36]} hxg4+ {[%emt 0:00:10]} 42. Kxg4 {[%emt 0:00:11]}
b5 {[%emt 0:00:06]} 43. b3 {[%emt 0:00:33]} bxc4 {[%emt 0:05:37]} 44. bxc4 {
[%emt 0:00:11]} Ng7 {[%emt 0:00:17]} 45. Re5 {[%emt 0:01:03]} Ne6 {[%emt 0:00:
00]} 46. f5 {[%emt 0:01:04]} gxf5+ {[%emt 0:00:06]} 47. Rxf5+ {[%emt 0:00:56]}
Ke7 {[%emt 0:01:37]} 48. Kf3 {[%emt 0:03:24]} Kd6 {[%emt 0:01:25]} 49. g6 {
[%emt 0:04:43]} a5 {[%emt 0:03:07]} 50. a4 {[%emt 0:00:27]} Ke7 {[%emt 0:00:16]
} 51. Rf7+ {[%emt 0:00:35]} Ke8 {[%emt 0:00:17]} 52. Ra7 {[%emt 0:00:46]} Kf8 {
[%emt 0:00:44]} 53. Rxa5 {[%emt 0:01:47]} Ng5+ {[%emt 0:00:41]} 54. Ke2 {
[%emt 0:01:17]} Ne4 {[%emt 0:00:52]} 55. Ra7 {[%emt 0:00:50]} 1-0

[Event "44th Chess Olympiad Open 2022"]
[Site "Chennai"]
[Date "2022.08.01"]
[Round "4.75"]
[White "Chiwambo Stansford"]
[Black "Muheto, Dieudonne"]
[Result "1-0"]
[WhiteElo "1913"]
[BlackElo "1830"]
[Annotator "NA RC"]
[PlyCount "91"]
[EventDate "2022.??.??"]
[TimeControl "60"]

1. c4 {[%emt 0:00:22]} Nf6 {[%emt 0:00:50]} 2. d4 {[%emt 0:00:00]} g6 {[%emt 0:
00:00]} 3. Nc3 {[%emt 0:00:13]} Bg7 {[%emt 0:00:34]} 4. e4 {[%emt 0:00:05]} d6
{[%emt 0:00:10]} 5. Be2 {[%emt 0:00:18]} O-O {[%emt 0:00:22]} 6. Nf3 {[%emt 0:
00:00]} e5 {[%emt 0:00:07]} 7. O-O {[%emt 0:00:33]} Nc6 {[%emt 0:04:37]} 8. d5
{[%emt 0:00:24]} Ne7 {[%emt 0:00:13]} 9. b4 {[%emt 0:00:44]} Nh5 {[%emt 0:00:
00]} 10. Nd2 {[%emt 0:03:18]} Nf4 {[%emt 0:00:15]} 11. Nb3 {[%emt 0:01:22]} f5
{[%emt 0:00:19]} 12. f3 {[%emt 0:04:30]} g5 {[%emt 0:02:45]} 13. g3 {[%emt 0:
00:00]} Nxe2+ {[%emt 0:04:50]} 14. Qxe2 {[%emt 0:00:27]} f4 {[%emt 0:00:58]}
15. c5 {[%emt 0:04:14]} h5 {[%emt 0:00:00]} 16. Bd2 {[%emt 0:02:35]} Ng6 {
[%emt 0:00:25]} 17. Rac1 {[%emt 0:02:24]} g4 {[%emt 0:00:42]} 18. Qg2 {[%emt 0:
00:00]} h4 {[%emt 0:01:32]} 19. fxg4 {[%emt 0:05:01]} Qg5 {[%emt 0:05:44]} 20.
gxf4 {[%emt 0:02:13]} Nxf4 {[%emt 0:01:49]} 21. h3 {[%emt 0:02:58]} Bd7 {
[%emt 0:03:28]} 22. Rf3 {[%emt 0:04:14]} Rf7 {[%emt 0:01:19]} 23. Bxf4 {
[%emt 0:03:06]} exf4 {[%emt 0:00:16]} 24. Rd1 {[%emt 0:01:33]} Re8 {[%emt 0:00:
00]} 25. Nd4 {[%emt 0:01:16]} Qe5 {[%emt 0:02:17]} 26. Qf2 {[%emt 0:00:57]} Qg5
{[%emt 0:10:11]} 27. Kh1 {[%emt 0:07:06]} Be5 {[%emt 0:06:03]} 28. Rf1 {
[%emt 0:02:51]} Qf6 {[%emt 0:07:26]} 29. Rd1 {[%emt 0:00:06]} Qg5 {[%emt 0:00:
00]} 30. Re1 {[%emt 0:02:14]} a5 {[%emt 0:06:24]} 31. a3 {[%emt 0:00:14]} axb4
{[%emt 0:00:27]} 32. axb4 {[%emt 0:00:06]} Ra8 {[%emt 0:03:41]} 33. Nf5 {
[%emt 0:05:42]} Bxf5 {[%emt 0:00:51]} 34. gxf5 {[%emt 0:00:33]} Kf8 {[%emt 0:
00:00]} 35. Rg1 {[%emt 0:00:54]} Qf6 {[%emt 0:00:31]} 36. Qg2 {[%emt 0:03:31]}
Qh8 {[%emt 0:05:16]} 37. Ne2 {[%emt 0:02:12]} Rg7 {[%emt 0:02:35]} 38. Qf2 {
[%emt 0:02:51]} Rxg1+ {[%emt 0:03:39]} 39. Qxg1 {[%emt 0:03:33]} Ra1 {[%emt 0:
00:00]} 40. Rf1 {[%emt 0:00:26]} Ra3 {[%emt 0:06:40]} 41. Qg4 {[%emt 0:30:57]}
Re3 {[%emt 0:34:41]} 42. f6 {[%emt 0:02:03]} Qxf6 {[%emt 0:00:00]} 43. Nxf4 {
[%emt 0:00:00]} Bxf4 {[%emt 0:00:00]} 44. Rxf4 {[%emt 0:00:00]} Re1+ {[%emt 0:
00:00]} 45. Kg2 {[%emt 0:00:00]} Re2+ {[%emt 0:00:00]} 46. Kf1 {[%emt 0:00:00]}
1-0

[Event "44th Chess Olympiad Open 2022"]
[Site "Chennai"]
[Date "2022.08.01"]
[Round "4.76"]
[White "Guillaume, Jude Mirvens"]
[Black "Asante Debesai Zerabruk"]
[Result "1/2-1/2"]
[WhiteElo "2022"]
[BlackElo "1785"]
[Annotator "NA RC"]
[PlyCount "109"]
[EventDate "2022.??.??"]
[TimeControl "60"]

1. d4 {[%emt 0:00:04]} Nf6 {[%emt 0:00:07]} 2. c4 {[%emt 0:00:12]} g6 {[%emt 0:
00:00]} 3. Bf4 {[%emt 0:00:24]} Bg7 {[%emt 0:01:41]} 4. Nc3 {[%emt 0:00:37]} d5
{[%emt 0:00:10]} 5. e3 {[%emt 0:00:18]} O-O {[%emt 0:01:27]} 6. Nf3 {[%emt 0:
00:00]} c5 {[%emt 0:07:35]} 7. Be2 {[%emt 0:06:12]} cxd4 {[%emt 0:08:03]} 8.
Nxd4 {[%emt 0:00:23]} Nc6 {[%emt 0:15:14]} 9. Nxc6 {[%emt 0:00:58]} bxc6 {
[%emt 0:00:06]} 10. O-O {[%emt 0:00:14]} Ne4 {[%emt 0:16:14]} 11. Nxe4 {
[%emt 0:00:59]} dxe4 {[%emt 0:05:30]} 12. Qc2 {[%emt 0:00:49]} e5 {[%emt 0:00:
00]} 13. Bg3 {[%emt 0:00:14]} h5 {[%emt 0:02:46]} 14. f3 {[%emt 0:04:57]} h4 {
[%emt 0:03:37]} 15. Be1 {[%emt 0:01:38]} exf3 {[%emt 0:02:45]} 16. Bxf3 {
[%emt 0:00:52]} Bf5 {[%emt 0:02:22]} 17. Be4 {[%emt 0:01:57]} Bd7 {[%emt 0:00:
00]} 18. Rd1 {[%emt 0:00:30]} Qe7 {[%emt 0:00:35]} 19. Qa4 {[%emt 0:01:19]} h3
{[%emt 0:07:33]} 20. g3 {[%emt 0:13:22]} Bg4 {[%emt 0:02:05]} 21. Rc1 {[%emt 0:
00:00]} Bh6 {[%emt 0:01:07]} 22. Bf2 {[%emt 0:00:25]} Rab8 {[%emt 0:01:46]} 23.
Qc2 {[%emt 0:02:14]} Rfd8 {[%emt 0:00:44]} 24. Bxc6 {[%emt 0:03:45]} Qc5 {
[%emt 0:00:01]} 25. Bd5 {[%emt 0:00:25]} Kg7 {[%emt 0:02:20]} 26. b3 {[%emt 0:
00:00]} Bxe3 {[%emt 0:00:29]} 27. Bxe3 {[%emt 0:00:03]} Qxe3+ {[%emt 0:00:02]}
28. Qf2 {[%emt 0:00:03]} Qxf2+ {[%emt 0:00:47]} 29. Kxf2 {[%emt 0:01:39]} Rd6 {
[%emt 0:00:46]} 30. Ke3 {[%emt 0:00:33]} f6 {[%emt 0:00:35]} 31. Rc2 {[%emt 0:
00:00]} a5 {[%emt 0:00:02]} 32. Rb2 {[%emt 0:02:24]} Rbd8 {[%emt 0:01:08]} 33.
a3 {[%emt 0:01:07]} Kf8 {[%emt 0:00:52]} 34. b4 {[%emt 0:00:36]} axb4 {[%emt 0:
00:00]} 35. axb4 {[%emt 0:00:02]} Ra6 {[%emt 0:00:52]} 36. Rb3 {[%emt 0:02:31]}
Ke7 {[%emt 0:00:51]} 37. b5 {[%emt 0:00:23]} Ra2 {[%emt 0:00:56]} 38. Rf2 {
[%emt 0:00:05]} Rxf2 {[%emt 0:00:41]} 39. Kxf2 {[%emt 0:00:02]} Be6 {[%emt 0:
00:00]} 40. Bxe6 {[%emt 0:01:49]} Kxe6 {[%emt 0:00:02]} 41. c5 {[%emt 0:30:21]}
Rb8 {[%emt 0:30:59]} 42. g4 {[%emt 0:02:08]} Kd5 {[%emt 0:00:00]} 43. c6 {
[%emt 0:00:00]} Kd6 {[%emt 0:00:00]} 44. Kg3 {[%emt 0:00:00]} Rh8 {[%emt 0:00:
00]} 45. Rd3+ {[%emt 0:00:00]} Kc5 {[%emt 0:00:00]} 46. c7 {[%emt 0:00:00]} Rc8
{[%emt 0:00:00]} 47. Kxh3 {[%emt 0:00:00]} Rxc7 {[%emt 0:00:00]} 48. Rc3+ {
[%emt 0:00:00]} Kb6 {[%emt 0:00:00]} 49. Rxc7 {[%emt 0:00:00]} Kxc7 {[%emt 0:
00:00]} 50. Kg3 {[%emt 0:00:00]} g5 {[%emt 0:00:00]} 51. h4 {[%emt 0:00:00]}
gxh4+ {[%emt 0:00:31]} 52. Kxh4 {[%emt 0:00:00]} Kb6 {[%emt 0:00:31]} 53. g5 {
[%emt 0:00:00]} fxg5+ {[%emt 0:00:52]} 54. Kxg5 {[%emt 0:00:00]} Kxb5 {[%emt 0:
00:00]} 55. Kf5 {[%emt 0:00:00]} 1/2-1/2

[Event "44th Chess Olympiad Open 2022"]
[Site "Chennai"]
[Date "2022.08.01"]
[Round "4.76"]
[White "Kibrom Weldegebriel Beraki"]
[Black "Jean Louis, Marckens"]
[Result "1-0"]
[WhiteElo "1793"]
[BlackElo "2050"]
[Annotator "NA RC"]
[PlyCount "157"]
[EventDate "2022.??.??"]
[TimeControl "60"]

1. d4 {[%emt 0:00:32]} Nf6 {[%emt 0:02:09]} 2. c4 {[%emt 0:00:12]} g6 {[%emt 0:
00:00]} 3. Nc3 {[%emt 0:00:21]} d5 {[%emt 0:00:36]} 4. Nf3 {[%emt 0:00:08]} Bg7
{[%emt 0:01:05]} 5. Qb3 {[%emt 0:00:07]} c6 {[%emt 0:01:49]} 6. Bf4 {[%emt 0:
00:00]} O-O {[%emt 0:04:52]} 7. e3 {[%emt 0:00:25]} b6 {[%emt 0:01:33]} 8. cxd5
{[%emt 0:01:44]} Nxd5 {[%emt 0:00:18]} 9. Nxd5 {[%emt 0:00:51]} Qxd5 {[%emt 0:
00:00]} 10. Bc4 {[%emt 0:00:46]} Qa5+ {[%emt 0:00:18]} 11. Kf1 {[%emt 0:02:26]}
Ba6 {[%emt 0:00:35]} 12. h4 {[%emt 0:00:55]} Nd7 {[%emt 0:04:42]} 13. h5 {
[%emt 0:01:37]} gxh5 {[%emt 0:03:03]} 14. Kg1 {[%emt 0:07:12]} Bxc4 {[%emt 0:
00:00]} 15. Qxc4 {[%emt 0:00:08]} Qd5 {[%emt 0:00:39]} 16. Qe2 {[%emt 0:07:42]}
Qf5 {[%emt 0:10:29]} 17. Rh3 {[%emt 0:04:29]} Nf6 {[%emt 0:08:22]} 18. Be5 {
[%emt 0:08:54]} Ng4 {[%emt 0:03:43]} 19. e4 {[%emt 0:03:25]} Qg6 {[%emt 0:00:
00]} 20. Nh4 {[%emt 0:22:14]} Qe6 {[%emt 0:11:13]} 21. Bxg7 {[%emt 0:09:30]}
Kxg7 {[%emt 0:00:32]} 22. Nf5+ {[%emt 0:00:11]} Kh8 {[%emt 0:00:53]} 23. Rxh5 {
[%emt 0:02:05]} Nf6 {[%emt 0:01:34]} 24. Rh4 {[%emt 0:00:17]} Rg8 {[%emt 0:00:
00]} 25. Qf3 {[%emt 0:07:51]} Rg5 {[%emt 0:06:57]} 26. Nh6 {[%emt 0:01:09]} Rg7
{[%emt 0:06:12]} 27. Rc1 {[%emt 0:02:21]} Rd8 {[%emt 0:03:05]} 28. Rc3 {
[%emt 0:04:49]} Ng8 {[%emt 0:07:38]} 29. Nf5 {[%emt 0:04:07]} Rg6 {[%emt 0:00:
00]} 30. Qh3 {[%emt 0:01:03]} h6 {[%emt 0:00:33]} 31. Rg3 {[%emt 0:02:17]} Kh7
{[%emt 0:00:42]} 32. Rxg6 {[%emt 0:02:46]} Qxg6 {[%emt 0:00:35]} 33. Rg4 {
[%emt 0:00:32]} Qe6 {[%emt 0:00:44]} 34. Qh5 {[%emt 0:01:11]} Kh8 {[%emt 0:00:
00]} 35. f3 {[%emt 0:01:07]} Qf6 {[%emt 0:02:04]} 36. e5 {[%emt 0:01:05]} Qe6 {
[%emt 0:00:23]} 37. Rh4 {[%emt 0:00:31]} Kh7 {[%emt 0:01:54]} 38. Qg4 {[%emt 0:
00:00]} Qg6 {[%emt 0:00:26]} 39. Qf4 {[%emt 0:00:23]} e6 {[%emt 0:02:24]} 40.
Nd6 {[%emt 0:00:29]} f5 {[%emt 0:00:44]} 41. Rh3 {[%emt 0:31:18]} Ne7 {[%emt 0:
00:00]} 42. Rxh6+ {[%emt 0:00:51]} Qxh6 {[%emt 0:00:34]} 43. Qxh6+ {[%emt 0:00:
00]} Kxh6 {[%emt 0:00:10]} 44. Nf7+ {[%emt 0:00:05]} Kg6 {[%emt 0:00:36]} 45.
Nxd8 {[%emt 0:00:13]} f4 {[%emt 0:00:58]} 46. Nxe6 {[%emt 0:00:00]} Kf5 {
[%emt 0:00:00]} 47. Nd8 {[%emt 0:00:00]} c5 {[%emt 0:00:00]} 48. dxc5 {[%emt 0:
00:00]} Kxe5 {[%emt 0:00:00]} 49. cxb6 {[%emt 0:00:00]} axb6 {[%emt 0:00:00]}
50. Kf2 {[%emt 0:00:00]} Nf5 {[%emt 0:00:00]} 51. Nf7+ {[%emt 0:00:00]} Kf6 {
[%emt 0:00:00]} 52. Nd8 {[%emt 0:00:00]} Ke5 {[%emt 0:00:00]} 53. a4 {[%emt 0:
00:00]} Ne3 {[%emt 0:00:00]} 54. b4 {[%emt 0:00:00]} Nc2 {[%emt 0:00:00]} 55.
a5 {[%emt 0:00:00]} Nxb4 {[%emt 0:00:00]} 56. axb6 {[%emt 0:00:00]} Kd6 {
[%emt 0:00:00]} 57. b7 {[%emt 0:00:00]} Na6 {[%emt 0:00:00]} 58. Nf7+ {[%emt 0:
00:00]} Kc7 {[%emt 0:00:00]} 59. Ng5 {[%emt 0:00:00]} Nc5 {[%emt 0:00:00]} 60.
Nh3 {[%emt 0:00:00]} Ne6 {[%emt 0:00:00]} 61. Ke2 {[%emt 0:00:00]} Kxb7 {
[%emt 0:00:00]} 62. Kd3 {[%emt 0:00:00]} Kc6 {[%emt 0:00:00]} 63. Ke4 {[%emt 0:
00:00]} Kd6 {[%emt 0:00:00]} 64. Nxf4 {[%emt 0:00:00]} Ng7 {[%emt 0:00:00]} 65.
g4 {[%emt 0:00:00]} Ke7 {[%emt 0:00:00]} 66. Ke5 {[%emt 0:00:00]} Kf7 {[%emt 0:
00:00]} 67. Ng2 {[%emt 0:00:00]} Kg6 {[%emt 0:00:00]} 68. f4 {[%emt 0:00:03]}
Ne8 {[%emt 0:00:00]} 69. Nh4+ {[%emt 0:00:34]} Kf7 {[%emt 0:00:00]} 70. g5 {
[%emt 0:00:29]} Ng7 {[%emt 0:00:00]} 71. f5 {[%emt 0:00:14]} Nh5 {[%emt 0:00:
00]} 72. Ng2 {[%emt 0:00:15]} Ng3 {[%emt 0:00:00]} 73. Nf4 {[%emt 0:00:20]} Kg7
{[%emt 0:00:00]} 74. Ne6+ {[%emt 0:00:38]} Kg8 {[%emt 0:00:00]} 75. g6 {
[%emt 0:01:14]} Nh5 {[%emt 0:00:00]} 76. f6 {[%emt 0:00:23]} Nxf6 {[%emt 0:00:
00]} 77. Kxf6 {[%emt 0:00:10]} Kh8 {[%emt 0:00:00]} 78. g7+ {[%emt 0:02:03]}
Kg8 {[%emt 0:00:00]} 79. Nd4 {[%emt 0:00:23]} 1-0